[Event "Titled Tuesday Blitz May 30 Early 2023"]
[White "Bernabeu Lopez, Carlos Javier"]
[Black "gao6969"]
[WhiteFideId "2235366"]
[WhiteElo "2344"]
[BlackElo "2322"]
[Result "1-0"]
[Round "01"]
[TimeControl "180+2"]
[Date "2023.05.30"]
[WhiteClock "0:02:07"]
[BlackClock "0:01:00"]

1. c4 {[%clk 0:02:55]}  e5 {[%clk 0:02:59]} 2. Nc3 {[%clk 0:02:55]}  Bb4 {[%clk 0:02:58]} 3. Nf3 {[%clk 0:02:54]}  Nc6 {[%clk 0:02:58]} 4. d3 {[%clk 0:02:54]}  Nf6 {[%clk 0:02:57]} 5. Bd2 {[%clk 0:02:52]}  O-O {[%clk 0:02:56]} 6. e3 {[%clk 0:02:50]}  Re8 {[%clk 0:02:53]} 7. a3 {[%clk 0:02:49]}  Bf8 {[%clk 0:02:53]} 8. Be2 {[%clk 0:02:49]}  d5 {[%clk 0:02:53]} 9. cxd5 {[%clk 0:02:49]}  Nxd5 {[%clk 0:02:54]} 10. O-O {[%clk 0:02:49]}  Be6 {[%clk 0:02:50]} 11. Rc1 {[%clk 0:02:49]}  f6 {[%clk 0:02:51]} 12. b4 {[%clk 0:02:50]}  a6 {[%clk 0:02:50]} 13. Ne4 {[%clk 0:02:49]}  Qe7 {[%clk 0:02:42]} 14. Nc5 {[%clk 0:02:48]}  Bc8 {[%clk 0:02:42]} 15. Qb3 {[%clk 0:02:48]}  Qf7 {[%clk 0:02:42]} 16. d4 {[%clk 0:02:43]}  Bxc5 {[%clk 0:02:35]} 17. Rxc5 {[%clk 0:02:42]}  Be6 {[%clk 0:02:22]} 18. Bc4 {[%clk 0:02:42]}  Nce7 {[%clk 0:02:05]} 19. e4 {[%clk 0:02:40]}  Nf4 {[%clk 0:01:57]} 20. Bxf4 {[%clk 0:02:35]}  Bxc4 {[%clk 0:01:57]} 21. Qxc4 {[%clk 0:02:32]}  Qxc4 {[%clk 0:01:53]} 22. Rxc4 {[%clk 0:02:33]}  exf4 {[%clk 0:01:52]} 23. Rxc7 {[%clk 0:02:34]}  Nc6 {[%clk 0:01:52]} 24. d5 {[%clk 0:02:34]}  Nd8 {[%clk 0:01:39]} 25. Re1 {[%clk 0:02:30]}  Kf8 {[%clk 0:01:36]} 26. e5 {[%clk 0:02:29]}  fxe5 {[%clk 0:01:23]} 27. Rxe5 {[%clk 0:02:29]}  Rxe5 {[%clk 0:01:22]} 28. Nxe5 {[%clk 0:02:30]}  a5 {[%clk 0:01:18]} 29. b5 {[%clk 0:02:27]}  a4 {[%clk 0:01:18]} 30. Rd7 {[%clk 0:02:23]}  Ke8 {[%clk 0:01:16]} 31. Rxg7 {[%clk 0:02:19]}  Rc8 {[%clk 0:01:16]} 32. h4 {[%clk 0:02:14]}  Rc1+ {[%clk 0:01:15]} 33. Kh2 {[%clk 0:02:14]}  Rc3 {[%clk 0:01:15]} 34. Rg4 {[%clk 0:02:13]}  Rxa3 {[%clk 0:01:15]} 35. Rxf4 {[%clk 0:02:13]}  Rb3 {[%clk 0:01:15]} 36. Rxa4 {[%clk 0:02:12]}  Rxb5 {[%clk 0:01:15]} 37. Rd4 {[%clk 0:02:09]}  Ne6 {[%clk 0:01:13]} 38. dxe6 {[%clk 0:02:08]}  Rxe5 {[%clk 0:01:13]} 39. Rd7 {[%clk 0:02:09]}  Rxe6 {[%clk 0:01:10]} 40. Rxb7 {[%clk 0:02:07]}  h6 {[%clk 0:01:08]} 41. g4 {[%clk 0:02:07]}  Kf8 {[%clk 0:01:09]} 42. Kg3 {[%clk 0:02:07]}  Ra6 {[%clk 0:01:09]} 43. g5 {[%clk 0:02:07]}  Kg8 {[%clk 0:01:08]} 44. Kg4 {[%clk 0:02:05]}  Rc6 {[%clk 0:01:06]} 45. f4 {[%clk 0:02:05]}  Ra6 {[%clk 0:01:04]} 46. f5 {[%clk 0:02:05]}  Rc6 {[%clk 0:01:03]} 47. f6 {[%clk 0:02:05]}  hxg5 {[%clk 0:01:03]} 48. hxg5 {[%clk 0:02:06]}  Rc1 {[%clk 0:01:03]} 49. Kh5 {[%clk 0:02:06]}  Rc2 {[%clk 0:01:01]} 50. Kg6 {[%clk 0:02:06]}  Rc8 {[%clk 0:01:01]} 51. Rg7+ {[%clk 0:02:06]}  Kf8 {[%clk 0:01:01]} 52. Rh7 {[%clk 0:02:07]}  Rc1 {[%clk 0:01:00]} 53. Rh8# {[%clk 0:02:07]} 1-0


[Site "https://www.chess.com"]

[Event "Titled Tuesday Blitz May 30 Early 2023"]
[White "Lenaerts, Lennert"]
[Black "KVAIDAN"]
[WhiteFideId "211435"]
[WhiteElo "2334"]
[BlackElo "2313"]
[Result "1-0"]
[Round "01"]
[TimeControl "180+2"]
[Date "2023.05.30"]
[WhiteClock "0:01:10"]
[BlackClock "0:01:26"]

1. d4 {[%clk 0:02:59]}  e6 {[%clk 0:02:58]} 2. c4 {[%clk 0:03:00]}  f5 {[%clk 0:02:59]} 3. g3 {[%clk 0:03:00]}  Nf6 {[%clk 0:02:59]} 4. Bg2 {[%clk 0:03:00]}  Be7 {[%clk 0:02:59]} 5. Nf3 {[%clk 0:03:01]}  O-O {[%clk 0:03:00]} 6. O-O {[%clk 0:03:01]}  d6 {[%clk 0:03:00]} 7. Nc3 {[%clk 0:03:02]}  a5 {[%clk 0:03:00]} 8. b3 {[%clk 0:02:57]}  Ne4 {[%clk 0:03:00]} 9. Bb2 {[%clk 0:02:58]}  Nxc3 {[%clk 0:03:00]} 10. Bxc3 {[%clk 0:02:59]}  Bf6 {[%clk 0:03:00]} 11. Qd3 {[%clk 0:02:53]}  Nc6 {[%clk 0:02:55]} 12. e4 {[%clk 0:02:51]}  fxe4 {[%clk 0:02:54]} 13. Qxe4 {[%clk 0:02:52]}  e5 {[%clk 0:02:53]} 14. dxe5 {[%clk 0:02:50]}  dxe5 {[%clk 0:02:53]} 15. Nxe5 {[%clk 0:02:40]}  Qe8 {[%clk 0:02:48]} 16. Nxc6 {[%clk 0:02:17]}  Bxc3 {[%clk 0:02:47]} 17. Rac1 {[%clk 0:02:15]}  Bf6 {[%clk 0:02:40]} 18. Qxe8 {[%clk 0:01:38]}  Rxe8 {[%clk 0:02:31]} 19. b4 {[%clk 0:01:39]}  bxc6 {[%clk 0:02:26]} 20. Bxc6 {[%clk 0:01:40]}  Be6 {[%clk 0:02:24]} 21. Bxe8 {[%clk 0:01:39]}  Rxe8 {[%clk 0:02:23]} 22. bxa5 {[%clk 0:01:39]}  Ra8 {[%clk 0:02:23]} 23. Rfe1 {[%clk 0:01:39]}  Kf7 {[%clk 0:02:23]} 24. Re2 {[%clk 0:01:33]}  Rxa5 {[%clk 0:02:23]} 25. f3 {[%clk 0:01:33]}  Ra4 {[%clk 0:02:19]} 26. Rec2 {[%clk 0:01:33]}  Bd4+ {[%clk 0:02:19]} 27. Kg2 {[%clk 0:01:33]}  c5 {[%clk 0:02:18]} 28. h4 {[%clk 0:01:32]}  Ra3 {[%clk 0:02:16]} 29. Rb1 {[%clk 0:01:31]}  Bf5 {[%clk 0:02:13]} 30. Rb7+ {[%clk 0:01:31]}  Kf6 {[%clk 0:02:13]} 31. Rb6+ {[%clk 0:01:31]}  Ke7 {[%clk 0:02:12]} 32. Re2+ {[%clk 0:01:30]}  Kd8 {[%clk 0:02:12]} 33. g4 {[%clk 0:01:30]}  Bd3 {[%clk 0:02:09]} 34. Rb8+ {[%clk 0:01:23]}  Kc7 {[%clk 0:02:09]} 35. Ree8 {[%clk 0:01:24]}  Bxc4 {[%clk 0:02:08]} 36. Rbc8+ {[%clk 0:01:25]}  Kd7 {[%clk 0:02:04]} 37. Red8+ {[%clk 0:01:21]}  Ke6 {[%clk 0:02:02]} 38. Re8+ {[%clk 0:01:22]}  Kf7 {[%clk 0:02:00]} 39. Rf8+ {[%clk 0:01:22]}  Kg6 {[%clk 0:02:00]} 40. Rc6+ {[%clk 0:01:19]}  Bf6 {[%clk 0:02:00]} 41. g5 {[%clk 0:01:18]}  Bd5 {[%clk 0:02:00]} 42. Rd6 {[%clk 0:01:17]}  Bxf3+ {[%clk 0:01:58]} 43. Kf2 {[%clk 0:01:17]}  Be4 {[%clk 0:01:36]} 44. gxf6 {[%clk 0:01:16]}  Rxa2+ {[%clk 0:01:36]} 45. Ke3 {[%clk 0:01:17]}  Bb1 {[%clk 0:01:36]} 46. f7+ {[%clk 0:01:14]}  Kh5 {[%clk 0:01:31]} 47. Re8 {[%clk 0:01:13]}  Bg6 {[%clk 0:01:28]} 48. f8=Q {[%clk 0:01:10]}  Ra3+ {[%clk 0:01:26]} 49. Kd2 {[%clk 0:01:10]} 1-0


[Site "https://www.chess.com"]

[Event "Titled Tuesday Blitz May 30 Early 2023"]
[White "Atanasov, Anthony"]
[Black "Sovetbekova, Nurai"]
[WhiteFideId "2623897"]
[BlackFideId "13801910"]
[WhiteElo "2326"]
[BlackElo "1857"]
[Result "1-0"]
[Round "01"]
[TimeControl "180+2"]
[Date "2023.05.30"]
[WhiteClock "0:01:27"]
[BlackClock "0:00:14"]

1. d4 {[%clk 0:03:00]}  Nf6 {[%clk 0:02:56]} 2. Nf3 {[%clk 0:03:00]}  e6 {[%clk 0:02:57]} 3. Bf4 {[%clk 0:03:00]}  d5 {[%clk 0:02:55]} 4. e3 {[%clk 0:03:01]}  c5 {[%clk 0:02:55]} 5. Nbd2 {[%clk 0:03:00]}  Nc6 {[%clk 0:02:55]} 6. c3 {[%clk 0:03:00]}  Nh5 {[%clk 0:02:45]} 7. Bg5 {[%clk 0:02:54]}  Qb6 {[%clk 0:02:45]} 8. Qc2 {[%clk 0:02:54]}  h6 {[%clk 0:02:40]} 9. Bh4 {[%clk 0:02:53]}  g5 {[%clk 0:02:40]} 10. Bg3 {[%clk 0:02:54]}  Nxg3 {[%clk 0:02:39]} 11. hxg3 {[%clk 0:02:55]}  Bg7 {[%clk 0:02:39]} 12. Bd3 {[%clk 0:02:53]}  Bd7 {[%clk 0:02:37]} 13. dxc5 {[%clk 0:02:52]}  Qxc5 {[%clk 0:02:36]} 14. e4 {[%clk 0:02:53]}  O-O-O {[%clk 0:02:20]} 15. Nb3 {[%clk 0:02:49]}  Qd6 {[%clk 0:02:16]} 16. O-O-O {[%clk 0:02:48]}  dxe4 {[%clk 0:02:14]} 17. Bxe4 {[%clk 0:02:49]}  Qc7 {[%clk 0:02:14]} 18. Nc5 {[%clk 0:02:44]}  b6 {[%clk 0:01:56]} 19. Nxd7 {[%clk 0:02:39]}  Rxd7 {[%clk 0:01:56]} 20. Qa4 {[%clk 0:02:35]}  Nb8 {[%clk 0:01:36]} 21. Rxd7 {[%clk 0:02:28]}  Qxd7 {[%clk 0:01:35]} 22. Qc4+ {[%clk 0:02:26]}  Qc7 {[%clk 0:01:33]} 23. Qa4 {[%clk 0:02:26]}  f5 {[%clk 0:01:26]} 24. Bd3 {[%clk 0:02:19]}  Rd8 {[%clk 0:01:25]} 25. Bc4 {[%clk 0:02:17]}  Qe7 {[%clk 0:00:55]} 26. Re1 {[%clk 0:02:14]}  e5 {[%clk 0:00:54]} 27. Qb5 {[%clk 0:02:09]}  Nd7 {[%clk 0:00:46]} 28. Qc6+ {[%clk 0:02:04]}  Kb8 {[%clk 0:00:45]} 29. Bd5 {[%clk 0:02:05]}  Nc5 {[%clk 0:00:30]} 30. Qa8+ {[%clk 0:02:02]}  Kc7 {[%clk 0:00:29]} 31. Qxa7+ {[%clk 0:02:03]}  Kd6 {[%clk 0:00:30]} 32. Qxb6+ {[%clk 0:01:59]}  Kxd5 {[%clk 0:00:28]} 33. Rd1+ {[%clk 0:01:47]}  Ke4 {[%clk 0:00:21]} 34. Qb4+ {[%clk 0:01:45]}  Rd4 {[%clk 0:00:19]} 35. Nxd4 {[%clk 0:01:31]}  exd4 {[%clk 0:00:15]} 36. Re1+ {[%clk 0:01:31]}  Kd5 {[%clk 0:00:14]} 37. Rxe7 {[%clk 0:01:28]}  Nd3+ {[%clk 0:00:15]} 38. Kd2 {[%clk 0:01:28]}  Nxb4 {[%clk 0:00:15]} 39. Rxg7 {[%clk 0:01:27]}  dxc3+ {[%clk 0:00:15]} 40. bxc3 {[%clk 0:01:27]}  Nxa2 {[%clk 0:00:14]} 41. Ra7 {[%clk 0:01:27]} 1-0


[Site "https://www.chess.com"]

[Event "Titled Tuesday Blitz May 30 Early 2023"]
[White "Vaglio Munoz, Jaime"]
[Black "Sadykov, Ramil"]
[WhiteFideId "6500145"]
[BlackFideId "24113590"]
[WhiteElo "2199"]
[BlackElo "2245"]
[Result "0-1"]
[Round "01"]
[TimeControl "180+2"]
[Date "2023.05.30"]
[WhiteClock "0:00:41"]
[BlackClock "0:00:56"]

1. Nf3 {[%clk 0:02:58]}  c5 {[%clk 0:02:59]} 2. c4 {[%clk 0:02:57]}  Nc6 {[%clk 0:02:59]} 3. b3 {[%clk 0:02:56]}  e5 {[%clk 0:02:58]} 4. d3 {[%clk 0:02:53]}  g6 {[%clk 0:02:56]} 5. Bb2 {[%clk 0:02:52]}  Bg7 {[%clk 0:02:57]} 6. Nc3 {[%clk 0:02:51]}  Nge7 {[%clk 0:02:55]} 7. g3 {[%clk 0:02:50]}  d5 {[%clk 0:02:54]} 8. cxd5 {[%clk 0:02:49]}  Nxd5 {[%clk 0:02:55]} 9. Rc1 {[%clk 0:02:36]}  O-O {[%clk 0:02:38]} 10. Nxd5 {[%clk 0:02:32]}  Qxd5 {[%clk 0:02:38]} 11. Bg2 {[%clk 0:02:32]}  Be6 {[%clk 0:02:25]} 12. O-O {[%clk 0:02:16]}  Qd6 {[%clk 0:02:22]} 13. Nd2 {[%clk 0:02:14]}  b6 {[%clk 0:02:19]} 14. Nc4 {[%clk 0:02:11]}  Qc7 {[%clk 0:01:56]} 15. Qd2 {[%clk 0:01:54]}  f6 {[%clk 0:01:47]} 16. Qe3 {[%clk 0:01:51]}  Rfe8 {[%clk 0:01:40]} 17. Qf3 {[%clk 0:01:47]}  Rac8 {[%clk 0:01:39]} 18. e3 {[%clk 0:01:43]}  Qd7 {[%clk 0:01:37]} 19. Qe2 {[%clk 0:01:40]}  Bd5 {[%clk 0:01:24]} 20. e4 {[%clk 0:01:34]}  Be6 {[%clk 0:01:23]} 21. Ne3 {[%clk 0:01:34]}  Nb4 {[%clk 0:01:16]} 22. Rfd1 {[%clk 0:01:29]}  Nxa2 {[%clk 0:01:16]} 23. Nd5 {[%clk 0:01:08]}  Nxc1 {[%clk 0:01:14]} 24. Rxc1 {[%clk 0:01:08]}  f5 {[%clk 0:01:08]} 25. Bc3 {[%clk 0:01:03]}  Rcd8 {[%clk 0:01:07]} 26. Ra1 {[%clk 0:01:01]}  Qf7 {[%clk 0:01:06]} 27. Qa2 {[%clk 0:00:59]}  Bxd5 {[%clk 0:01:04]} 28. exd5 {[%clk 0:00:58]}  a5 {[%clk 0:01:05]} 29. Qb2 {[%clk 0:00:53]}  e4 {[%clk 0:01:03]} 30. dxe4 {[%clk 0:00:43]}  fxe4 {[%clk 0:01:04]} 31. Rd1 {[%clk 0:00:40]}  Bxc3 {[%clk 0:01:00]} 32. Qxc3 {[%clk 0:00:41]}  Rxd5 {[%clk 0:01:01]} 33. Qc4 {[%clk 0:00:41]}  Rxd1+ {[%clk 0:00:56]} 34. Bf1 {[%clk 0:00:41]} 0-1


[Site "https://www.chess.com"]

[Event "Titled Tuesday Blitz May 30 Early 2023"]
[White "Jiganchine, Roman"]
[Black "brm72"]
[WhiteFideId "2603667"]
[WhiteElo "2301"]
[BlackElo "2607"]
[Result "0-1"]
[Round "01"]
[TimeControl "180+2"]
[Date "2023.05.30"]
[WhiteClock "0:00:00"]
[BlackClock "0:00:32"]

1. e4 {[%clk 0:02:56]}  c5 {[%clk 0:03:00]} 2. Nf3 {[%clk 0:02:51]}  d6 {[%clk 0:03:00]} 3. Bb5+ {[%clk 0:02:49]}  Nd7 {[%clk 0:02:59]} 4. a4 {[%clk 0:02:46]}  a6 {[%clk 0:02:58]} 5. Be2 {[%clk 0:02:46]}  g6 {[%clk 0:02:58]} 6. d4 {[%clk 0:02:38]}  cxd4 {[%clk 0:02:58]} 7. Qxd4 {[%clk 0:02:38]}  Ngf6 {[%clk 0:02:58]} 8. e5 {[%clk 0:02:21]}  dxe5 {[%clk 0:02:57]} 9. Nxe5 {[%clk 0:02:21]}  Qa5+ {[%clk 0:02:56]} 10. Bd2 {[%clk 0:02:03]}  Qxe5 {[%clk 0:02:55]} 11. Qxe5 {[%clk 0:02:02]}  Nxe5 {[%clk 0:02:56]} 12. Bc3 {[%clk 0:02:02]}  Nc6 {[%clk 0:02:49]} 13. g4 {[%clk 0:02:02]}  Bg7 {[%clk 0:02:30]} 14. g5 {[%clk 0:02:00]}  Nh5 {[%clk 0:02:29]} 15. Bxh5 {[%clk 0:01:59]}  Bxc3+ {[%clk 0:02:28]} 16. Nxc3 {[%clk 0:02:00]}  gxh5 {[%clk 0:02:28]} 17. Nd5 {[%clk 0:02:00]}  O-O {[%clk 0:02:20]} 18. Nb6 {[%clk 0:01:58]}  Rb8 {[%clk 0:02:18]} 19. O-O-O {[%clk 0:01:58]}  Bg4 {[%clk 0:02:13]} 20. Rd3 {[%clk 0:01:56]}  Rfd8 {[%clk 0:02:10]} 21. Rg3 {[%clk 0:01:53]}  Bf5 {[%clk 0:01:57]} 22. Re1 {[%clk 0:01:52]}  e6 {[%clk 0:01:52]} 23. c3 {[%clk 0:01:51]}  Kg7 {[%clk 0:01:46]} 24. b4 {[%clk 0:01:48]}  Ne7 {[%clk 0:01:44]} 25. Kb2 {[%clk 0:01:38]}  Nd5 {[%clk 0:01:43]} 26. Nc4 {[%clk 0:01:38]}  Nf4 {[%clk 0:01:41]} 27. Ne5 {[%clk 0:01:35]}  Rd5 {[%clk 0:01:30]} 28. c4 {[%clk 0:01:32]}  Rxe5 {[%clk 0:01:10]} 29. Rxe5 {[%clk 0:01:30]}  Nd3+ {[%clk 0:01:11]} 30. Rxd3 {[%clk 0:01:28]}  Bxd3 {[%clk 0:01:11]} 31. Kc3 {[%clk 0:01:28]}  Bf5 {[%clk 0:01:11]} 32. Rc5 {[%clk 0:01:27]}  h4 {[%clk 0:01:07]} 33. Rc7 {[%clk 0:01:25]}  Kg6 {[%clk 0:01:07]} 34. f4 {[%clk 0:01:25]}  e5 {[%clk 0:01:01]} 35. fxe5 {[%clk 0:01:23]}  Be6 {[%clk 0:01:01]} 36. c5 {[%clk 0:01:19]}  Kxg5 {[%clk 0:01:00]} 37. b5 {[%clk 0:01:18]}  axb5 {[%clk 0:00:58]} 38. axb5 {[%clk 0:01:18]}  Kf4 {[%clk 0:00:58]} 39. Kb4 {[%clk 0:01:18]}  Kxe5 {[%clk 0:00:56]} 40. Ka5 {[%clk 0:01:18]}  Bd5 {[%clk 0:00:44]} 41. Kb6 {[%clk 0:01:16]}  h3 {[%clk 0:00:39]} 42. Re7+ {[%clk 0:01:11]}  Kf4 {[%clk 0:00:37]} 43. Rd7 {[%clk 0:01:09]}  Ke5 {[%clk 0:00:37]} 44. Re7+ {[%clk 0:01:09]}  Kd4 {[%clk 0:00:35]} 45. Rd7 {[%clk 0:00:54]}  Kc4 {[%clk 0:00:34]} 46. Kc7 {[%clk 0:00:47]}  Ra8 {[%clk 0:00:34]} 47. Kb6 {[%clk 0:00:15]}  Rc8 {[%clk 0:00:34]} 48. Re7 {[%clk 0:00:04]}  Rxc5 {[%clk 0:00:33]} 49. Re5 {[%clk 0:00:04]}  Rxb5+ {[%clk 0:00:33]} 50. Kc7 {[%clk 0:00:04]}  Rb2 {[%clk 0:00:33]} 51. Rf5 {[%clk 0:00:00]}  b5 {[%clk 0:00:32]} 0-1


[Site "https://www.chess.com"]

[Event "Titled Tuesday Blitz May 30 Early 2023"]
[White "MaryanKyrychenko"]
[Black "Mirzanurov, Bulat"]
[BlackFideId "4184521"]
[WhiteElo "2604"]
[BlackElo "2005"]
[Result "1-0"]
[Round "01"]
[TimeControl "180+2"]
[Date "2023.05.30"]
[WhiteClock "0:01:32"]
[BlackClock "0:01:25"]

1. e4 {[%clk 0:02:57]}  c5 {[%clk 0:02:58]} 2. Nc3 {[%clk 0:02:57]}  d6 {[%clk 0:02:58]} 3. f4 {[%clk 0:02:56]}  Nc6 {[%clk 0:02:54]} 4. Nf3 {[%clk 0:02:57]}  g6 {[%clk 0:02:52]} 5. Bb5 {[%clk 0:02:57]}  Bg7 {[%clk 0:02:50]} 6. O-O {[%clk 0:02:57]}  e6 {[%clk 0:02:41]} 7. Bxc6+ {[%clk 0:02:55]}  bxc6 {[%clk 0:02:40]} 8. d3 {[%clk 0:02:56]}  Ne7 {[%clk 0:02:39]} 9. Be3 {[%clk 0:02:52]}  O-O {[%clk 0:02:37]} 10. Kh1 {[%clk 0:02:45]}  Rb8 {[%clk 0:02:33]} 11. Rb1 {[%clk 0:02:34]}  Ba6 {[%clk 0:02:29]} 12. Qd2 {[%clk 0:02:29]}  Qa5 {[%clk 0:02:26]} 13. e5 {[%clk 0:02:00]}  d5 {[%clk 0:02:21]} 14. Nxd5 {[%clk 0:01:57]}  Qd8 {[%clk 0:02:08]} 15. Nxe7+ {[%clk 0:01:57]}  Qxe7 {[%clk 0:02:07]} 16. Qa5 {[%clk 0:01:55]}  Bb5 {[%clk 0:02:02]} 17. a4 {[%clk 0:01:41]}  Rb6 {[%clk 0:01:34]} 18. axb5 {[%clk 0:01:35]}  cxb5 {[%clk 0:01:25]} 19. b4 {[%clk 0:01:32]} 1-0


[Site "https://www.chess.com"]

[Event "Titled Tuesday Blitz May 30 Early 2023"]
[White "iHateNAJDORF"]
[Black "rikchessmx"]
[WhiteElo "2604"]
[BlackElo "2294"]
[Result "1/2-1/2"]
[Round "01"]
[TimeControl "180+2"]
[Date "2023.05.30"]
[WhiteClock "0:00:04"]
[BlackClock "0:00:24"]

1. e4 {[%clk 0:02:59]}  e5 {[%clk 0:02:44]} 2. Nf3 {[%clk 0:02:59]}  Nc6 {[%clk 0:02:44]} 3. Bc4 {[%clk 0:02:58]}  Bc5 {[%clk 0:02:42]} 4. O-O {[%clk 0:02:47]}  d6 {[%clk 0:02:41]} 5. c3 {[%clk 0:02:45]}  Qf6 {[%clk 0:02:40]} 6. d3 {[%clk 0:02:41]}  h6 {[%clk 0:02:39]} 7. a4 {[%clk 0:02:40]}  a6 {[%clk 0:02:37]} 8. b4 {[%clk 0:02:37]}  Ba7 {[%clk 0:02:37]} 9. Be3 {[%clk 0:02:37]}  Nge7 {[%clk 0:02:36]} 10. Nbd2 {[%clk 0:02:34]}  Ng6 {[%clk 0:02:36]} 11. Re1 {[%clk 0:02:20]}  Nf4 {[%clk 0:02:35]} 12. Nf1 {[%clk 0:02:19]}  O-O {[%clk 0:02:34]} 13. Ng3 {[%clk 0:02:18]}  Bg4 {[%clk 0:02:32]} 14. d4 {[%clk 0:02:09]}  exd4 {[%clk 0:02:18]} 15. cxd4 {[%clk 0:02:03]}  Nxb4 {[%clk 0:01:39]} 16. e5 {[%clk 0:01:40]}  dxe5 {[%clk 0:01:36]} 17. dxe5 {[%clk 0:01:41]}  Bxf3 {[%clk 0:01:34]} 18. Qxf3 {[%clk 0:01:30]}  Nh3+ {[%clk 0:01:34]} 19. Kf1 {[%clk 0:01:21]}  Qxf3 {[%clk 0:01:34]} 20. gxf3 {[%clk 0:01:22]}  Bxe3 {[%clk 0:01:33]} 21. fxe3 {[%clk 0:01:21]}  Nc2 {[%clk 0:01:33]} 22. f4 {[%clk 0:01:21]}  Nxa1 {[%clk 0:01:32]} 23. Rxa1 {[%clk 0:01:21]}  b5 {[%clk 0:01:30]} 24. Bd5 {[%clk 0:01:17]}  Rad8 {[%clk 0:01:29]} 25. Bg2 {[%clk 0:01:17]}  Nxf4 {[%clk 0:01:28]} 26. exf4 {[%clk 0:01:17]}  Rd4 {[%clk 0:01:28]} 27. axb5 {[%clk 0:01:13]}  Rxf4+ {[%clk 0:01:26]} 28. Kg1 {[%clk 0:01:06]}  axb5 {[%clk 0:01:26]} 29. Be4 {[%clk 0:01:01]}  Re8 {[%clk 0:01:20]} 30. Ra5 {[%clk 0:00:56]}  Rxe4 {[%clk 0:01:19]} 31. Nxe4 {[%clk 0:00:56]}  Rxe5 {[%clk 0:01:19]} 32. Nc3 {[%clk 0:00:53]}  c6 {[%clk 0:01:15]} 33. Ra8+ {[%clk 0:00:51]}  Kh7 {[%clk 0:01:14]} 34. Rc8 {[%clk 0:00:52]}  b4 {[%clk 0:01:13]} 35. Na4 {[%clk 0:00:52]}  Re6 {[%clk 0:01:10]} 36. Rb8 {[%clk 0:00:48]}  Re4 {[%clk 0:01:08]} 37. Rb6 {[%clk 0:00:46]}  Rc4 {[%clk 0:01:07]} 38. Rb7 {[%clk 0:00:38]}  Kg6 {[%clk 0:01:06]} 39. Kg2 {[%clk 0:00:34]}  b3 {[%clk 0:01:04]} 40. Nb6 {[%clk 0:00:29]}  Rc2+ {[%clk 0:01:04]} 41. Kg3 {[%clk 0:00:29]}  b2 {[%clk 0:01:04]} 42. Na4 {[%clk 0:00:27]}  c5 {[%clk 0:00:58]} 43. Nxb2 {[%clk 0:00:22]}  c4 {[%clk 0:00:57]} 44. Na4 {[%clk 0:00:20]}  Ra2 {[%clk 0:00:57]} 45. Nc5 {[%clk 0:00:12]}  c3 {[%clk 0:00:53]} 46. Rc7 {[%clk 0:00:13]}  Ra3 {[%clk 0:00:48]} 47. Kg2 {[%clk 0:00:07]}  f5 {[%clk 0:00:43]} 48. Ne6 {[%clk 0:00:06]}  Kf6 {[%clk 0:00:43]} 49. Nxg7 {[%clk 0:00:06]}  c2 {[%clk 0:00:39]} 50. Nh5+ {[%clk 0:00:07]}  Kg5 {[%clk 0:00:39]} 51. Ng3 {[%clk 0:00:06]}  Ra2 {[%clk 0:00:37]} 52. Kh3 {[%clk 0:00:06]}  f4 {[%clk 0:00:35]} 53. Ne4+ {[%clk 0:00:07]}  Kf5 {[%clk 0:00:35]} 54. Nd6+ {[%clk 0:00:06]}  Ke5 {[%clk 0:00:34]} 55. Nf7+ {[%clk 0:00:06]}  Kd4 {[%clk 0:00:32]} 56. Nxh6 {[%clk 0:00:06]}  Kd3 {[%clk 0:00:31]} 57. Ng4 {[%clk 0:00:04]}  Kd2 {[%clk 0:00:31]} 58. Rd7+ {[%clk 0:00:04]}  Ke1 {[%clk 0:00:30]} 59. Rc7 {[%clk 0:00:03]}  f3 {[%clk 0:00:30]} 60. Kg3 {[%clk 0:00:03]}  Ke2 {[%clk 0:00:29]} 61. Nf2 {[%clk 0:00:02]}  Kd2 {[%clk 0:00:27]} 62. Rd7+ {[%clk 0:00:03]}  Ke1 {[%clk 0:00:27]} 63. Re7+ {[%clk 0:00:03]}  Kd2 {[%clk 0:00:27]} 64. Rd7+ {[%clk 0:00:03]}  Kc3 {[%clk 0:00:27]} 65. Rc7+ {[%clk 0:00:03]}  Kb2 {[%clk 0:00:27]} 66. Nd3+ {[%clk 0:00:04]}  Kb1 {[%clk 0:00:26]} 67. Rb7+ {[%clk 0:00:03]}  Ka1 {[%clk 0:00:25]} 68. Kxf3 {[%clk 0:00:02]}  Ra3 {[%clk 0:00:25]} 69. Ke2 {[%clk 0:00:02]}  Rxd3 {[%clk 0:00:25]} 70. Rc7 {[%clk 0:00:02]}  Rh3 {[%clk 0:00:24]} 71. Rxc2 {[%clk 0:00:02]}  Rxh2+ {[%clk 0:00:24]} 72. Kd3 {[%clk 0:00:03]}  Rxc2 {[%clk 0:00:24]} 73. Kxc2 {[%clk 0:00:04]} 1/2-1/2


[Site "https://www.chess.com"]

[Event "Titled Tuesday Blitz May 30 Early 2023"]
[White "Miranda, Rafael"]
[Black "Tsyhanchuk, Stanislav"]
[WhiteFideId "130990"]
[BlackFideId "13505130"]
[WhiteElo "2204"]
[BlackElo "2173"]
[Result "1-0"]
[Round "01"]
[TimeControl "180+2"]
[Date "2023.05.30"]
[WhiteClock "0:00:35"]
[BlackClock "0:00:11"]

1. e4 {[%clk 0:03:00]}  c5 {[%clk 0:02:59]} 2. Nf3 {[%clk 0:03:01]}  d6 {[%clk 0:02:59]} 3. c3 {[%clk 0:03:01]}  Nf6 {[%clk 0:02:58]} 4. h3 {[%clk 0:03:00]}  Nbd7 {[%clk 0:02:56]} 5. Bd3 {[%clk 0:02:59]}  g6 {[%clk 0:02:54]} 6. O-O {[%clk 0:02:59]}  Bg7 {[%clk 0:02:53]} 7. Re1 {[%clk 0:02:59]}  O-O {[%clk 0:02:51]} 8. Bf1 {[%clk 0:03:00]}  Ne5 {[%clk 0:02:43]} 9. d4 {[%clk 0:02:53]}  cxd4 {[%clk 0:02:41]} 10. cxd4 {[%clk 0:02:25]}  Nxf3+ {[%clk 0:02:41]} 11. Qxf3 {[%clk 0:02:24]}  Nd7 {[%clk 0:02:27]} 12. Be3 {[%clk 0:02:12]}  Qb6 {[%clk 0:02:24]} 13. Nc3 {[%clk 0:02:12]}  Re8 {[%clk 0:01:53]} 14. Nd5 {[%clk 0:02:10]}  Qd8 {[%clk 0:01:43]} 15. Rac1 {[%clk 0:02:08]}  Rb8 {[%clk 0:01:36]} 16. Rc2 {[%clk 0:01:45]}  e6 {[%clk 0:01:32]} 17. Nc7 {[%clk 0:01:41]}  Rf8 {[%clk 0:01:32]} 18. Nb5 {[%clk 0:01:41]}  a6 {[%clk 0:01:03]} 19. Nxd6 {[%clk 0:01:36]}  Nb6 {[%clk 0:00:56]} 20. Nxc8 {[%clk 0:01:26]}  Rxc8 {[%clk 0:00:57]} 21. Rxc8 {[%clk 0:01:24]}  Qxc8 {[%clk 0:00:58]} 22. Rc1 {[%clk 0:01:14]}  Qd8 {[%clk 0:00:52]} 23. Qd1 {[%clk 0:01:14]}  Nd7 {[%clk 0:00:48]} 24. Qb3 {[%clk 0:01:10]}  b5 {[%clk 0:00:43]} 25. a4 {[%clk 0:01:10]}  bxa4 {[%clk 0:00:40]} 26. Qxa4 {[%clk 0:01:10]}  a5 {[%clk 0:00:32]} 27. Bb5 {[%clk 0:00:55]}  Nb6 {[%clk 0:00:25]} 28. Qxa5 {[%clk 0:00:53]}  Bxd4 {[%clk 0:00:23]} 29. Rd1 {[%clk 0:00:39]}  Bc3 {[%clk 0:00:18]} 30. Rxd8 {[%clk 0:00:33]}  Bxa5 {[%clk 0:00:19]} 31. Rxf8+ {[%clk 0:00:33]}  Kxf8 {[%clk 0:00:19]} 32. Bc5+ {[%clk 0:00:34]}  Kg7 {[%clk 0:00:11]} 33. b4 {[%clk 0:00:35]} 1-0


[Site "https://www.chess.com"]